fUSD/lending_fUSD_20250407
["ID","MTS","AMOUNT","RATE_DAILY","PERIOD"]
[357379308,1744025440588,-151.37,0.0002,2]
[357379309,1744025440597,-172.2035395,0.000209,2]
[357379310,1744025440607,-300.0,0.00021,2]
[357379311,1744025440616,-250.0,0.00022,2]
[357379312,1744025440626,-151.37,0.0002479,2]
[357379313,1744025440635,-335523.406597,0.000248,2]
[357379314,1744025440645,-151.37,0.0002489,2]
[357379315,1744025440655,-312599.22432,0.000249,2]
[357379316,1744025440664,-250.0,0.00024942,2]
[357379317,1744025440672,-455.949879,0.00025,7]
[357379318,1744025440681,-37999.999998,0.00025,2]
[357379319,1744025440691,-240.49672446,0.00025452,2]
[357379320,1744025440700,-2289.64,0.00026632,2]
[357379321,1744025440709,-150.73,0.00026849,2]
[357379322,1744025440719,-250.0,0.00027,2]
[357379323,1744025440728,-995.67932919,0.00027,2]
[357379324,1744025440737,-31896.0681728,0.00027378,2]
[357379325,1744025440747,-2000.0,0.00028179,4]
[357379326,1744025440756,-2289.64,0.00028896,2]
[357379327,1744025440765,-745.66,0.00029815,2]
[357379328,1744025440774,-999.99,0.00029815,2]
[357379329,1744025440783,-289.99,0.00029815,2]
[357379331,1744025440792,-150.99,0.00029815,2]
[357379333,1744025440801,-299.99,0.00029815,12]
[357379334,1744025440811,-9999.99,0.00029815,2]
[357379335,1744025440819,-228.38461818,0.0002999,2]
[357379336,1744025440829,-151.37,0.0002999,2]
[357379337,1744025440837,-300.0,0.00029999,10]
[357379338,1744025440846,-1000.0,0.00029999,2]
[357379339,1744025440856,-1000.0,0.00029999,2]
[357379340,1744025440865,-1000.0,0.00029999,2]
[357379341,1744025440874,-6380.12752824,0.0003,20]
[357379342,1744025440883,-7000.0,0.0003,10]
[357379343,1744025440892,-19831.26,0.0003,2]
[357379344,1744025440900,-150.99,0.0003,2]
[357379345,1744025440909,-290.60409069,0.0003,2]
[357379346,1744025440918,-46031.47198964,0.0003,2]
[357379347,1744025440927,-24076.15616905,0.0003,5]
[357379348,1744025440936,-17486.4163116,0.0003,2]
[357379349,1744025440945,-129866.7707459,0.0003,2]
[357379350,1744025440954,-291.12582019,0.0003,2]
[357379351,1744025440964,-212.0,0.0003,2]
[357379352,1744025440973,-1230.85412069,0.0003,10]
[357379353,1744025440982,-1746.37951282,0.0003,2]
[357379354,1744025440991,-1542.09991634,0.0003,2]
[357379355,1744025441001,-390.87996285,0.00030187,3]
[357379356,1744025441010,-4237.07410639,0.00031,2]
[357379357,1744025441019,-2289.64,0.0003116,2]
[357379358,1744025441028,-3039.61641976,0.0003121,2]
[357379359,1744025441037,-249.0255496,0.0003167,40]
[357379360,1744025441047,-636.83711825,0.000321,5]
[357379361,1744025441056,-500.0,0.000321,5]
[357379362,1744025441065,-500.0,0.000321,5]
[357379363,1744025441075,-153.04065958,0.000321,5]
[357379364,1744025441084,-193.61970565,0.000322,2]
[357379365,1744025441093,-500.0,0.0003225,5]
[357379366,1744025441103,-500.0,0.0003225,5]
[357379367,1744025441113,-500.0,0.0003225,5]
[357379368,1744025441122,-500.0,0.0003225,5]
[357379369,1744025441131,-1000.0,0.00032765,30]
[357379370,1744025441140,-4640.41743736,0.000328,2]
[357379371,1744025441150,-1331.37198738,0.000329,30]
[357379372,1744025441159,-202.7839818,0.0003293,30]
[357379373,1744025441168,-151.37,0.0003299,2]
[357379374,1744025441177,-151.37,0.0003299,2]
[357379375,1744025441186,-1000.0,0.00032999,2]
[357379376,1744025441195,-1000.0,0.00032999,2]
[357379377,1744025441450,-1000.0,0.00032999,2]
[357379378,1744025441460,-344.39614602,0.00032999,10]
[357379379,1744025441470,-1000.0,0.00032999,2]
[357379380,1744025441479,-1000.0,0.00032999,2]
[357379381,1744025441488,-1000.0,0.00032999,2]
[357379382,1744025441498,-25056.26237881,0.00033,2]
[357379383,1744025441508,-212.0,0.00033,2]
[357379384,1744025441517,-593272.05089921,0.00033,2]
[357379385,1744025441526,-262.69063495,0.00033,30]
[357379386,1744025441540,-215.93498723,0.000331,2]
[357379387,1744025441553,-2289.64,0.00033424,2]
[357379388,1744025441563,-1165.57095062,0.000335,2]
[357379389,1744025441572,-1388.8,0.0003355,120]
[357379390,1744025441582,-150.73,0.00033733,2]
[357379391,1744025441591,-3991.70386852,0.00034,2]
[357379392,1744025441600,-2000.0,0.00034124,2]
[357379393,1744025441610,-3450.19188876,0.000348,2]
[357379394,1744025441620,-151.37,0.0003499,2]
[357379395,1744025441631,-159.32109427,0.0003499,2]
[357379396,1744025441640,-1000.0,0.00034999,2]
[357379397,1744025441650,-1000.0,0.00034999,2]
[357379398,1744025441660,-237.26260782,0.00035,30]
[357379399,1744025441669,-5386.77527426,0.00035,2]
[357379400,1744025441679,-175.79,0.00035,2]
[357379401,1744025441688,-182202.32895489,0.00035,40]
[357379402,1744025441698,-226.98478768,0.00035,2]
[357379403,1744025441707,-451.11207771,0.00035,30]
[357379404,1744025441717,-151.37,0.000351,2]
[357379405,1744025441727,-151.37,0.000351,2]
[357379406,1744025441737,-1000.0,0.00035109,2]
[357379407,1744025441746,-1000.0,0.00035109,2]
[357379408,1744025441755,-1000.0,0.00035109,2]
[357379409,1744025441765,-1000.0,0.00035109,2]
[357379410,1744025441774,-1000.0,0.00035109,2]
[357379411,1744025441783,-562880.80577648,0.0003511,30]
[357379412,1744025441793,-2289.64,0.00035687,2]
[357379413,1744025441802,-94758.21153949,0.0003593,7]
[357379414,1744025441812,-212.0,0.00036,2]
[357379415,1744025441821,-643.14038601,0.00036,2]
[357379416,1744025441830,-300.0,0.00036,2]
[357379417,1744025441841,-1157.31584803,0.00036164,2]
[357379418,1744025441852,-3411.69955865,0.000365,120]
[357379419,1744025441862,-7936.04606724,0.000366,2]
[357379420,1744025441871,-87345.8542178,0.00037,2]
[357379421,1744025441880,-151.37,0.0003758,2]
[357379422,1744025441890,-4188.63518024,0.0003759,2]
[357379423,1744025441899,-355.47783704,0.00037729,5]
[357379424,1744025441908,-1000.0,0.00037729,5]
[357379425,1744025441918,-1000.0,0.00037729,5]
[357379426,1744025441928,-167.76667554,0.000378,2]
[357379427,1744025441937,-2289.64,0.00037951,2]
[357379428,1744025441946,-151.95805675,0.00037999,120]
[357379429,1744025441956,-214.23852231,0.00039,120]
[357379430,1744025441966,-3570.99137609,0.00039,120]
[357379431,1744025441977,-167.52835503,0.00039,120]
[357379432,1744025441987,-10569.77129596,0.00039,120]
[357379433,1744025441996,-2126.06496276,0.0003949,2]
[357379434,1744025442006,-209.38148751,0.0003962,2]
[357379435,1744025442016,-500.0,0.00039726,15]
[357379436,1744025442026,-153.34827797,0.00039726,15]
[357379437,1744025442035,-151.37,0.0003999,2]
[357379438,1744025442045,-1000.0,0.00039999,2]
[357379439,1744025442056,-1000.0,0.00039999,2]
[357379440,1744025442066,-1000.0,0.00039999,2]
[357379441,1744025442075,-1000.0,0.00039999,2]
[357379442,1744025442085,-1000.0,0.00039999,2]
[357379443,1744025442095,-5124.48467391,0.0004,30]
[357379444,1744025442105,-1941.53269806,0.0004,7]
[357379445,1744025442114,-8604.46423287,0.0004,2]
[357379446,1744025442124,-9997.32020136,0.0004,30]
[357379447,1744025442133,-405.78823983,0.0004,120]
[357379448,1744025442144,-378.36679028,0.0004,2]
[357379449,1744025442153,-5060.20959684,0.0004,2]
[357379450,1744025442162,-212.06202181,0.0004,2]
[357379451,1744025442172,-3001.31617396,0.0004,30]
[357379452,1744025442181,-155.94990164,0.0004,15]
[357379453,1744025442190,-199.61158168,0.0004,60]
[357379454,1744025442200,-299993.00243585,0.0004,30]
[357379455,1744025442209,-151.0,0.0004,14]
[357379456,1744025442220,-2289.64,0.00040215,2]
[357379457,1744025442229,-150.73,0.00040616,2]
[357379458,1744025442239,-11495.59119289,0.0004083,2]
[357379492,1744025443079,-86.4505779,0.0004083,2]
[357379495,1744025443102,-326.20300823,0.0004083,2]
[357379496,1744025443442,-464.763648,0.0004083,2]
[357379540,1744025446273,-7683.0305929,0.000329,2]
[357379541,1744025446283,-1536.98711597,0.000372,103]
[357379542,1744025446294,-213.0,0.0004,2]
[357379543,1744025446303,-43002.32441178,0.0004083,2]
[357379544,1744025545772,392.78813176,0.00019999,2]
[357379545,1744025554200,500.0,0.00042882,120]
[357379546,1744025558425,4340.69074641,0.000199,2]
[357379547,1744025558448,4733.47887817,0.000199,2]
[357379548,1744025558471,4733.47887817,0.000199,2]
[357379549,1744025558497,4733.47887817,0.000199,2]
[357379550,1744025558520,1966.30031908,0.000199,2]
[357379551,1744025561651,500.0,0.00042882,120]
[357379552,1744025566541,500.0,0.00042882,120]
[357379553,1744025573976,994.002,0.00042882,120]
[357379554,1744025706345,875.79750789,0.00042887,120]
[357379555,1744025711365,2000.0,0.00042887,60]
[357379556,1744025779802,300.0,0.00042887,30]
[357379557,1744025799961,500.0,0.00042887,30]
[357379558,1744025837726,151.0,0.00042887,30]
[357379559,1744025838917,156.587,0.00042887,30]
[357379560,1744025839188,162.380719,0.00042887,30]
[357379561,1744025839931,162.380719,0.00042887,30]
[357379562,1744025843317,500.0,0.00042887,30]
[357379563,1744025844091,518.5,0.00042887,30]
[357379564,1744025844700,537.6845,0.00042887,30]
[357379565,1744025845357,557.5788265,0.00042887,30]
[357379566,1744025846135,578.20924308,0.00042887,30]
[357379567,1744025846805,599.60298507,0.00042887,30]
[357379568,1744025847737,621.78829552,0.00042887,30]
[357379569,1744025848437,644.79446246,0.00042887,30]
[357379570,1744025849494,668.65185757,0.00042887,30]
[357379571,1744025849800,668.65185757,0.00042887,30]
[357379572,1744025860581,200.0,0.00042887,30]
[357379573,1744025861459,207.4,0.00042887,30]
[357379574,1744025861936,215.0738,0.00042887,30]
[357379575,1744025862627,223.0315306,0.00042887,30]
[357379576,1744025863307,231.28369723,0.00042887,30]
[357379577,1744025863966,239.84119403,0.00042887,30]
[357379578,1744025865201,248.71531821,0.00042887,30]
[357379579,1744025865930,257.91778498,0.00042887,30]
[357379580,1744025866605,267.46074303,0.00042887,30]
[357379581,1744025867312,277.35679052,0.00042887,30]
[357379582,1744025867988,287.61899177,0.00042887,30]
[357379583,1744025869260,298.26089446,0.00042887,30]
[357379584,1744025870746,309.29654756,0.00042887,30]
[357379585,1744025870903,320.74051982,0.00042887,30]
[357379586,1744025871340,332.60791905,0.00042887,30]
[357379587,1744025871981,344.91441206,0.00042887,30]
[357379588,1744025872654,357.6762453,0.00042887,30]
[357379589,1744025873293,370.91026638,0.00042887,30]
[357379590,1744025873989,384.63394623,0.00042887,30]
[357379591,1744025878125,384.63394623,0.00042887,30]
[357379592,1744025898700,500.0,0.00042887,120]
[357379593,1744026145273,200.0,0.00042862,30]
[357379594,1744026145906,207.4,0.00042862,30]
[357379595,1744026146637,215.0738,0.00042862,30]
[357379596,1744026147626,223.0315306,0.00042862,30]
[357379597,1744026148034,231.28369723,0.00042862,30]
[357379598,1744026148674,239.84119403,0.00042862,30]
[357379599,1744026149304,248.71531821,0.00042862,30]
[357379600,1744026150001,257.91778498,0.00042862,30]
[357379601,1744026150631,267.46074303,0.00042862,30]
[357379602,1744026151361,277.35679052,0.00042862,30]
[357379603,1744026151890,287.61899177,0.00042862,30]
[357379604,1744026152625,298.26089446,0.00042862,30]
[357379605,1744026153240,309.29654756,0.00042862,30]
[357379606,1744026153872,320.74051982,0.00042862,30]
[357379607,1744026154566,332.60791905,0.00042862,30]
[357379608,1744026155902,344.91441206,0.00042862,30]
[357379609,1744026156706,357.6762453,0.00042862,30]
[357379610,1744026157357,370.91026638,0.00042862,30]
[357379611,1744026158188,384.63394623,0.00042862,30]
[357379612,1744026158619,384.63394623,0.00042862,30]
[357379613,1744026353126,-150.0,0.00021917,2]
[357379614,1744026353147,-350.0,0.0002226,12]
[357379615,1744026353168,-250.0,0.00022602,2]
[357379616,1744026353190,-150.0,0.00023287,2]
[357379617,1744026353210,-250.0,0.00024109,2]
[357379618,1744026353230,-15.86678295,0.00024109,2]
[357379619,1744026438082,-234.13321705,0.00024109,2]
[357379620,1744026438105,-350.0,0.00024109,12]
[357379621,1744026438129,-121.28297772,0.00024657,2]
[357379622,1744026445448,-28.71702228,0.00024657,2]
[357379623,1744026445472,-150.0,0.00026027,2]
[357379624,1744026445494,-250.0,0.0002652,2]
[357379625,1744026445515,-133.67830937,0.00026849,2]
[357379626,1744026445676,200.0,0.00042862,30]
[357379627,1744026446338,207.4,0.00042862,30]
[357379628,1744026446990,215.0738,0.00042862,30]
[357379629,1744026447626,223.0315306,0.00042862,30]
[357379630,1744026448293,231.28369723,0.00042862,30]
[357379631,1744026448943,239.84119403,0.00042862,30]
[357379632,1744026449611,248.71531821,0.00042862,30]
[357379633,1744026450268,257.91778498,0.00042862,30]
[357379634,1744026451087,-40.05169063,0.00026849,2]
[357379635,1744026451108,-116.91586721,0.00027397,2]
[357379636,1744026451144,267.46074303,0.00042862,30]
[357379637,1744026451813,277.35679052,0.00042862,30]
[357379638,1744026452133,-33.08413279,0.00027397,2]
[357379639,1744026452155,-699.73858866,0.00028623,2]
[357379640,1744026452485,287.61899177,0.00042862,30]
[357379641,1744026453218,298.26089446,0.00042862,30]
[357379642,1744026453867,309.29654756,0.00042862,30]
[357379643,1744026454501,320.74051982,0.00042862,30]
[357379644,1744026454788,-193.33877934,0.00028623,2]
[357379645,1744026454811,-150.0,0.00028767,2]
[357379646,1744026454831,-250.0,0.00029297,2]
[357379647,1744026454851,-42.35635505,0.0003,2]
[357379648,1744026455581,332.60791905,0.00042862,30]
[357379649,1744026455822,344.91441206,0.00042862,30]
[357379650,1744026456474,357.6762453,0.00042862,30]
[357379651,1744026457290,370.91026638,0.00042862,30]
[357379652,1744026457951,384.63394623,0.00042862,30]
[357379653,1744026458580,384.63394623,0.00042862,30]
[357379654,1744026550291,500.0,0.00042862,120]
[357379655,1744026556166,-150.0,0.00029999,2]
[357379656,1744026556188,-470.80979482,0.0003,2]
[357379657,1744026556209,-150.99,0.0003,2]
[357379658,1744026556230,-13747.03276364,0.0003,2]
[357379659,1744026557164,-6252.95723636,0.0003,2]
[357379660,1744026557186,-1808.39,0.0003,2]
[357379661,1744026557219,-150.0,0.00030136,2]
[357379662,1744026557245,-150.0,0.00031506,2]
[357379663,1744026557267,-217.70214511,0.000319,2]
[357379664,1744026557290,-26539.62297151,0.000319,7]
[357379665,1744026557313,-173.73,0.00032646,2]
[357379666,1744026557335,-150.0,0.00032876,2]
[357379667,1744026557357,-311.87673904,0.000329,30]
[357379668,1744026557380,-150.0,0.00034246,2]
[357379669,1744026557402,-150.0,0.00034548,10]
[357379670,1744026557423,-500.0,0.0003547,5]
[357379671,1744026557445,-150.0,0.00035616,2]
[357379672,1744026557467,-1000.0,0.00036156,2]
[357379673,1744026557489,-733.11,0.00036347,2]
[357379674,1744026557510,-303.7396,0.00036408,2]
[357379675,1744026557531,-8716.27976798,0.00036498,2]
[357379676,1744026567128,-4397.091636,0.00036498,2]
[357379677,1744026571122,-839.53074075,0.00036498,2]
[357379685,1744026632704,-2183.58072086,0.00036498,2]
[357379686,1744026632904,-70.63279268,0.00036498,2]
[357379687,1744026632996,-3114.63917091,0.00036498,2]
[357379688,1744026633006,-715.66082909,0.0003655,2]
[357379689,1744026633030,-986.45917091,0.0003655,2]
[357379691,1744026633041,-868.34,0.00036597,2]
[357379693,1744026633052,-500.0,0.00036958,2]
[357379695,1744026633063,-150.0,0.00036986,2]
[357379697,1744026633072,-420.68212066,0.00037199,30]
[357379712,1744026638225,-470.21677052,0.00037199,30]
[357379713,1744026638245,-109.10110882,0.00037199,30]
[357379714,1744026638255,-501.32912877,0.000372,103]
[357379715,1744026638425,-1872.75110438,0.000372,103]
[357379716,1744026638435,-1124.15887665,0.000372,103]
[357379718,1744026638792,-836.64,0.000372,103]
[357379719,1744026638848,-17.44083897,0.000372,103]
[357379729,1744026640869,-395.84051752,0.000372,103]
[357379730,1744026640878,-131.09871848,0.00037504,2]
[357379731,1744026640895,-137.59038152,0.00037504,2]
[357379732,1744026640905,-549.42057856,0.00037565,2]
[357379746,1744026644392,-314.06187086,0.00037565,2]
[357379747,1744026644404,-1795.37755058,0.00037565,2]
[357379748,1744026644413,-2658.86,0.00037575,2]
[357379749,1744026644422,-2658.86,0.00037585,2]
[357379750,1744026644431,-2658.86,0.00037595,2]
[357379751,1744026644441,-2658.86,0.00037604,2]
[357379752,1744026644452,-2658.86,0.00037614,2]
[357379753,1744026644461,-2658.86,0.00037624,2]
[357379754,1744026644470,-2658.86,0.00037634,2]
[357379755,1744026644480,-2658.86,0.00037644,2]
[357379756,1744026644489,-2210.34690198,0.00037654,2]
[357379757,1744026644500,-448.51309802,0.00037654,2]
[357379758,1744026644509,-164.8,0.00037662,2]
[357379759,1744026644519,-93.34129219,0.00037664,2]
[357379765,1744026646863,-721.09108766,0.00037664,2]
[357379766,1744026646874,-687.74226595,0.00037664,2]
[357379767,1744026646889,-1156.6853542,0.00037664,2]
[357379768,1744026646898,-2658.86,0.00037674,2]
[357379769,1744026646907,-1809.64412018,0.00037684,2]
[357379770,1744026647023,-78.37957714,0.00037684,2]
[357379771,1744026647037,-770.83630268,0.00037684,2]
[357379772,1744026647046,-712.26369731,0.00037693,2]
[357379773,1744026647058,-1946.59630269,0.00037693,2]
[357379774,1744026647067,-1570.60368731,0.00037703,2]
[357379775,1744026647081,-1088.25631269,0.00037703,2]
[357379776,1744026647091,-777.46,0.00037709,2]
[357379777,1744026647102,-2658.86,0.00037713,2]
[357379778,1744026647112,-83.34678332,0.00037723,2]
[357379779,1744026652042,2990.0,0.00021435,2]
[357379780,1744026676183,250.0,0.00019,2]
[357379781,1744026677288,300.0,0.00021,2]
[357379782,1744026678774,350.0,0.00023,2]
[357379783,1744026679426,400.0,0.00025,2]
[357379784,1744026680507,450.0,0.00027,2]
[357379785,1744026681602,500.0,0.00029,2]
[357379786,1744026718583,500.0,0.00042862,120]
[357379787,1744026743243,200.0,0.00042862,30]
[357379788,1744026743811,207.4,0.00042862,30]
[357379789,1744026744495,215.0738,0.00042862,30]
[357379790,1744026745173,223.0315306,0.00042862,30]
[357379791,1744026745944,231.28369723,0.00042862,30]
[357379792,1744026746827,239.84119403,0.00042862,30]
[357379793,1744026747479,248.71531821,0.00042862,30]
[357379794,1744026748175,257.91778498,0.00042862,30]
[357379795,1744026748823,267.46074303,0.00042862,30]
[357379796,1744026749482,277.35679052,0.00042862,30]
[357379797,1744026750129,287.61899177,0.00042862,30]
[357379798,1744026750800,298.26089446,0.00042862,30]
[357379799,1744026751473,309.29654756,0.00042862,30]
[357379800,1744026752106,320.74051982,0.00042862,30]
[357379801,1744026754174,332.60791905,0.00042862,30]
[357379802,1744026754522,344.91441206,0.00042862,30]
[357379803,1744026755447,357.6762453,0.00042862,30]
[357379804,1744026755749,370.91026638,0.00042862,30]
[357379805,1744026755890,384.63394623,0.00042862,30]
[357379806,1744026756376,384.63394623,0.00042862,30]
[357379807,1744026833565,172.0,0.00033,120]
[357379808,1744026852085,172.0,0.00033,120]
[357379809,1744027043953,200.0,0.00042861,30]
[357379810,1744027044643,207.4,0.00042861,30]
[357379811,1744027045480,215.0738,0.00042861,30]
[357379812,1744027046165,223.0315306,0.00042861,30]
[357379813,1744027046997,231.28369723,0.00042861,30]
[357379814,1744027047658,239.84119403,0.00042861,30]
[357379815,1744027048329,248.71531821,0.00042861,30]
[357379816,1744027049013,257.91778498,0.00042861,30]
[357379817,1744027050238,267.46074303,0.00042861,30]
[357379818,1744027050994,277.35679052,0.00042861,30]
[357379819,1744027051628,287.61899177,0.00042861,30]
[357379820,1744027052285,298.26089446,0.00042861,30]
[357379821,1744027052938,309.29654756,0.00042861,30]
[357379822,1744027053836,320.74051982,0.00042861,30]
[357379823,1744027054289,332.60791905,0.00042861,30]
[357379824,1744027054908,344.91441206,0.00042861,30]
[357379825,1744027055572,357.6762453,0.00042861,30]
[357379826,1744027056753,370.91026638,0.00042861,30]
[357379827,1744027057450,384.63394623,0.00042861,30]
[357379828,1744027058197,384.63394623,0.00042861,30]
[357379829,1744027203836,167.5809628,0.00042861,30]
[357379830,1744027345755,200.0,0.00042861,30]
[357379831,1744027346935,207.4,0.00042861,30]
[357379832,1744027347189,215.0738,0.00042861,30]
[357379833,1744027347912,223.0315306,0.00042861,30]
[357379834,1744027348552,231.28369723,0.00042861,30]
[357379835,1744027349316,239.84119403,0.00042861,30]
[357379836,1744027350094,248.71531821,0.00042861,30]
[357379837,1744027350904,257.91778498,0.00042861,30]
[357379838,1744027351568,267.46074303,0.00042861,30]
[357379839,1744027352332,277.35679052,0.00042861,30]
[357379840,1744027353544,287.61899177,0.00042861,30]
[357379841,1744027354294,298.26089446,0.00042861,30]
[357379842,1744027355088,309.29654756,0.00042861,30]
[357379843,1744027355963,320.74051982,0.00042861,30]
[357379844,1744027356585,332.60791905,0.00042861,30]
[357379845,1744027357426,344.91441206,0.00042861,30]
[357379846,1744027358057,357.6762453,0.00042861,30]
[357379847,1744027358840,370.91026638,0.00042861,30]
[357379848,1744027359475,384.63394623,0.00042861,30]
[357379849,1744027360277,384.63394623,0.00042861,30]
[357379850,1744027550840,344.37,0.00042861,120]
[357379851,1744027572789,386.0269,0.00042861,30]
[357379852,1744027596150,-155.19,0.00026849,2]
[357379853,1744027596171,-74.88103313,0.00031,2]
[357379854,1744027638701,-475.11896687,0.00031,2]
[357379855,1744027638724,-500.0,0.00032575,2]
[357379856,1744027638752,-192.28615128,0.00033,2]
[357379857,1744027646094,-277.37397689,0.00032553,2]
[357379858,1744027653108,200.0,0.00042861,30]
[357379859,1744027654374,207.4,0.00042861,30]
[357379860,1744027654566,215.0738,0.00042861,30]
[357379861,1744027655365,223.0315306,0.00042861,30]
[357379862,1744027656042,231.28369723,0.00042861,30]
[357379863,1744027656791,239.84119403,0.00042861,30]
[357379864,1744027657531,248.71531821,0.00042861,30]
[357379865,1744027658766,257.91778498,0.00042861,30]
[357379866,1744027659475,267.46074303,0.00042861,30]
[357379867,1744027660796,277.35679052,0.00042861,30]
[357379868,1744027661420,287.61899177,0.00042861,30]
[357379869,1744027662659,298.26089446,0.00042861,30]
[357379870,1744027663365,309.29654756,0.00042861,30]
[357379871,1744027665163,320.74051982,0.00042861,30]
[357379872,1744027665293,332.60791905,0.00042861,30]
[357379873,1744027665994,344.91441206,0.00042861,30]
[357379874,1744027666724,357.6762453,0.00042861,30]
[357379875,1744027667405,370.91026638,0.00042861,30]
[357379876,1744027668106,384.63394623,0.00042861,30]
[357379877,1744027668818,384.63394623,0.00042861,30]
[357379878,1744027745110,-212.0,0.00032553,2]
[357379879,1744027745132,-15038.69114381,0.00032553,2]
[357379880,1744027754112,-930.82335586,0.00032553,2]
[357379881,1744027757100,-27396.53058635,0.00032553,2]
[357379882,1744027761181,-103618.83154918,0.00032553,2]
[357379883,1744027766174,-1104.34318292,0.00032453,2]
[357379884,1744027766194,-6963.33423908,0.00032553,2]
[357379885,1744027770125,-18624.60844897,0.00032553,2]
[357379886,1744027795342,500.0,0.00042861,30]
[357379887,1744027803808,500.0,0.00042861,30]
[357379888,1744027811100,500.0,0.00042861,30]
[357379894,1744027838464,-180.3095262,0.00032453,2]
[357379895,1744027838475,-327.0,0.00032552,2]
[357379896,1744027838485,-624.8604738,0.00032553,2]
[357379897,1744027838727,-1392.68663958,0.00032553,2]
[357379898,1744027838738,-1488.35813043,0.00032553,2]
[357379899,1744027838751,-1147.83,0.00032553,2]
[357379906,1744027840447,586.48783372,0.00042861,30]
[357379907,1744027840742,-129.71167995,0.00032553,2]
[357379908,1744027840785,-558.29781197,0.00032553,2]
[357379909,1744027840798,-34357.05596413,0.00032553,2]
[357379910,1744027840807,-17517.9316666,0.00032553,2]
[357379911,1744027840817,-407.71384872,0.00033,2]
[357379912,1744027840827,-151762.119254,0.00034456,2]
[357379913,1744027840837,-500.0,0.00034473,2]
[357379914,1744027840847,-500.0,0.00034473,5]
[357379915,1744027840856,-1871.55,0.0003448,2]
[357379916,1744027840867,-155.19,0.00034716,2]
[357379917,1744027840877,-650.0,0.00035,2]
[357379918,1744027840887,-1852.42,0.00035983,2]
[357379919,1744027840897,-19999.99,0.00035983,2]
[357379920,1744027840908,-1000.0,0.00036187,2]
[357379921,1744027840918,-1307.12,0.00036227,2]
[357379922,1744027840927,-1000.0,0.00036246,2]
[357379923,1744027840937,-2000.0,0.00036307,2]
[357379924,1744027840947,-164.37,0.0003635,2]
[357379925,1744027840956,-1083.88,0.00036369,2]
[357379926,1744027840966,-150.0,0.00036412,2]
[357379927,1744027840976,-200.0,0.00036546,2]
[357379928,1744027840986,-510.0,0.00036548,2]
[357379929,1744027840995,-300.0,0.00036608,2]
[357379930,1744027841005,-1871.55,0.00036744,2]
[357379931,1744027841015,-749.79,0.00036776,2]
[357379932,1744027841024,-443.76,0.0003683,120]
[357379933,1744027841034,-21006.37,0.00036859,2]
[357379934,1744027841044,-200.0,0.00036976,2]
[357379935,1744027841053,-610.0,0.00036988,2]
[357379936,1744027841063,-700.0,0.00037,2]
[357379937,1744027841072,-250.0,0.00037017,120]
[357379938,1744027841082,-1424.4481399,0.000372,103]
[357379939,1744027841091,-300.0,0.00037283,2]
[357379940,1744027841100,-561.84,0.0003731,2]
[357379941,1744027841111,-811.1775,0.00037617,2]
[357379942,1744027841121,-9215.1015,0.00037617,2]
[357379943,1744027841130,-631.6895,0.00037617,2]
[357379944,1744027841139,-9583.08772516,0.00037617,2]
[357379945,1744027841149,-3888.238,0.00037623,49]
[357379946,1744027841159,-206.272,0.00037623,49]
[357379947,1744027841169,-163.03600764,0.00037706,15]
[357379948,1744027841179,-500.0,0.00037706,15]
[357379949,1744027841188,-153.34827797,0.00037706,15]
[357379950,1744027841198,-79422.6516769,0.00037707,3]
[357379951,1744027841207,-1279.4171187,0.00037717,2]